Cogmind - Beta 16.1 @@@ ROGUE MODE // 2026.02.28 @ 15:48:21 Player: Ceorik Result: Destroyed by as-94859 with Assembled Maul Performance ------------- Evolutions (0) 0 Regions Visited (2) 400 Robots Destroyed (23) 115 Value Destroyed (377) 377 Prototype IDs (2) 40 Alien Tech Used (0) 0 Bonus (0) 0 TOTAL SCORE: 932 Bonus ------- None Cogmind --------- Core Integrity 0/250 Matter 289/300 Energy 239/250 System Corruption 0% Temperature Cool (6) Movement Treading (160) Location -10/Mines Parts ------- > --- POWER (1) -------- Ion Engine > --- PROPULSION (2) --- Light Treads Light Treads > --- UTILITY (2) ------ Large Storage Unit Light Armor Plating > --- WEAPON (2) ------- Light Assault Rifle Light Assault Rifle > --- INVENTORY (15) --- Light Ion Engine Light Treads Light Treads Wheel Heat Sink Medium Storage Unit Large Matter Pod (150) Large Matter Pod (150) Sensor Array Seismic Detector Weapon Shielding Weapon Shielding Light Armor Plating Light Assault Rifle Peak State ------------ > --- POWER ------------ Ion Engine > --- PROPULSION ------- Light Treads Light Treads > --- UTILITY ---------- Large Storage Unit Sensor Array > --- WEAPON ----------- Assault Rifle Light Assault Rifle > --- INVENTORY -------- Ion Engine Light Ion Engine Light Treads Wheel Wheel Heat Sink Medium Storage Unit Small Matter Pod Large Matter Pod Seismic Detector [Rating: 8] Favorites ----------- Power Ion Engine Engine Ion Engine Propulsion Light Treads Treads Light Treads Utility Large Storage Unit Device Sensor Array Storage Large Storage Unit Processor Signal Interpreter Protection Light Armor Plating Weapon Light Assault Rifle Ballistic Gun Light Assault Rifle Build | -11 -10 -10 ------- Run | Yrd Mat Min Slots Evolved . | . . . Power . | . . . Propulsion . | . . . Utility . | . . . Weapon . | . . . Parts Attached 18 | 7 7 4 Power 2 | 1 1 . Engine 2 | 1 1 . Core . | . . . Reactor . | . . . Propulsion 3 | 2 1 . Treads 3 | 2 1 . Leg . | . . . Wheel . | . . . Hover . | . . . Flight . | . . . Utility 7 | 2 4 1 Device 2 | 1 1 . Storage 3 | 1 2 . Processor 1 | . . 1 Hackware . | . . . Protection 1 | . 1 . Artifact . | . . . Weapon 6 | 2 1 3 Energy Gun . | . . . Energy Cannon . | . . . Ballistic Gun 6 | 2 1 3 Ballistic Cannon . | . . . Launcher . | . . . Special Weapon . | . . . Impact Weapon . | . . . Slashing Weapon . | . . . Piercing Weapon . | . . . Special Melee Weapon . | . . . Unidentified Prototypes . | . . . Parts Lost 2 | . 2 . Power 1 | . 1 . Propulsion . | . . . Utility . | . . . Weapon 1 | . 1 . Highest Loss Streak 1 | . 1 . To Critical Strikes . | . . . Average Backups 11 | . 8 14 Power 1 | . 1 1 Propulsion 2 | . 2 3 Utility 7 | . 4 10 Weapon . | . . . Tool/Special . | . . . Unused Backups 12 | . 1 11 Power 1 | . . 1 Propulsion 4 | . . 4 Utility 7 | . 1 6 Weapon . | . . . Tool/Special . | . . . Average Slot Usage (%) 94 | . 96 91 Engine 14 | . 14 14 Treads 28 | . 28 28 Device 8 | . 9 7 Storage 14 | . 14 14 Processor 3 | . . 6 Ballistic Gun 23 | . 27 19 Peak Build Rating 8 | 7 8 8 Average Rating 7 | 5 7 7 On Entrance 4 | . 7 7 Avg Prop Armor Cover (%) . | . . . Naked Turns . | . . . Heaviest Build 31 | 14 31 27 Greatest Support 40 | 40 40 40 Greatest Overweight (x) . | . . . Average Overweight (x) . | . . . Largest Inventory Capacity 15 | 8 15 15 Average Capacity 14 | 7 13 15 Most Carried 15 | 1 15 15 Average Carried 11 | . 8 14 Final Capacity 15 | 8 15 15 Final Carried 14 | 1 14 14 Class Distribution -------------------- 100% | Mutant Dominant Class ---------------- Mutant | -10/Materials Mutant | -10/Mines Resources | -11 -10 -10 ----------- Run | Yrd Mat Min Matter Collected 1069 | 174 605 290 Remotely . | . . . Salvage Created 578 | 10 502 66 Parts 44 | 3 34 7 Haulers Intercepted 2 | . 2 . Recyclers Shooed . | . . . Parts Field Recycled . | . . . Retrieved Matter . | . . . Parts Self-Destructed . | . . . Prevented . | . . . Parts Restored . | . . . Kills | -11 -10 -10 ------- Run | Yrd Mat Min Combat Hostiles Destroyed 15 | . 10 5 Guns 15 | . 10 5 Classes Destroyed 6 | 1 5 . Worker 3 | . 2 1 Tunneler 1 | 1 . . Hauler 2 | . 2 . Watcher 2 | . 2 . Swarmer 8 | . 3 5 Grunt 7 | . 7 . Best Kill Streak 3 | 1 3 3 Combat Bots Only 3 | . 3 3 Max Kills in Single Turn 1 | 1 1 1 Gunslinging . | . . . Exploded . | . . . Melee . | . . . Uniques/NPCs Destroyed . | . . . Combat | -11 -10 -10 -------- Run | Yrd Mat Min Hostile Shots Fired 120 | . 65 55 Missed 31 | . 15 16 Hits 89 | . 50 39 Melee 4 | . . 4 Projectile 85 | . 50 35 Critical Strikes 1 | . 1 . Part Disruptions 2 | . . 2 Damage Taken 1046 | . 582 464 Core 256 | . 61 195 Absorbed by Shields . | . . . Core Remaining (%) 100 | 100 . . Volleys Fired 67 | 3 53 11 Largest 2 | 2 2 2 Hottest 40 | 40 40 40 Shots Fired 130 | 6 106 18 Gun 130 | 6 106 18 Cannon . | . . . Launcher . | . . . Special . | . . . Kinetic 130 | 6 106 18 Thermal . | . . . Explosive . | . . . Electromagnetic . | . . . Robot Hit Streak 11 | 6 11 5 Robot Miss Streak 4 | . 4 3 Penetration Max . | . . . Secondary Targets . | . . . Shots Hit Robots 89 | 6 72 11 Core Hits 37 | 2 29 6 Critical Kills . | . . . Critical Parts Destroyed . | . . . Critical Strikes . | . . . Melee Attacks . | . . . Impact . | . . . Slashing . | . . . Piercing . | . . . Sneak Attacks . | . . . Combat Hostiles . | . . . Follow-up Attacks . | . . . Damage Inflicted 940 | 61 748 131 Guns 915 | 61 748 106 Cannons . | . . . Explosions . | . . . Melee . | . . . Ramming 25 | . . 25 Kinetic 915 | 61 748 106 Thermal . | . . . Explosive . | . . . Electromagnetic . | . . . Impact . | . . . Slashing . | . . . Piercing . | . . . Highest Corruption . | . . . Average Corruption . | . . . Corruption Purged . | . . . Corruption Blocked . | . . . Overload Shots . | . . . Overflow Damage . | . . . Projectiles . | . . . Explosions . | . . . Melee . | . . . Knockbacks . | . . . Impact . | . . . Kinetic . | . . . Secondary . | . . . Self-Inflicted Damage . | . . . Shots . | . . . Rammed 3 | . . 3 Targets Rammed 4 | . . 4 Kicked . | . . . Crushed 1 | . . 1 Highest Temperature 36 | . 36 6 Average Temperature 9 | . 10 2 Received Heat Transfer 354 | . 234 120 Siege Activations . | . . . Martial Activations . | . . . Shielding Activations . | . . . Robots Disrupted . | . . . Combat Hostiles . | . . . Robots Corrupted . | . . . Combat Hostiles . | . . . Parts Fried . | . . . Impact Corruptions . | . . . Robots Melted . | . . . Combat Hostiles . | . . . Parts Melted . | . . . Heat Transferred . | . . . Parts Sabotaged . | . . . Parts Stolen . | . . . Parts Stripped . | . . . Power Chain Reactions . | . . . Alert | -11 -10 -10 ------- Run | Yrd Mat Min Maximum Alert Level . | . . . Low Security (%) 100 | 100 100 100 Level 1 . | . . . Level 2 . | . . . Level 3 . | . . . Level 4 . | . . . Level 5 . | . . . High Security . | . . . Max Security . | . . . Peak Influence 75 | 5 75 66 Initial . | . . . Average 11 | . 13 10 Influence Increases 460 | 5 330 125 Destroy 0b10 Robot/C 300 | . 200 100 Destroy 0b10 Robot/NC 40 | 5 30 5 Destroy Leader 78 | . 58 20 Trap Triggered on 0b10 10 | . 10 . Successful Hack 17 | . 17 . Lose Combat Pursuer 15 | . 15 . Influence Decreases 460 | 5 330 125 Time Decay 458 | 5 328 125 Lost Part 2 | . 2 . Squads Dispatched 3 | . 3 . Investigation 2 | . 2 . Extermination . | . . . Reinforcement 1 | . 1 . Assault . | . . . Garrison . | . . . Intercept . | . . . Searches Triggered . | . . . Construction Impeded . | . . . Haulers Reinforced . | . . . Active Scanning Responses . | . . . Cargo Convoy Interrupts . | . . . Stealth | -11 -10 -10 --------- Run | Yrd Mat Min Distress Signals 1 | . 1 . Communications Jammed . | . . . Distress Signals . | . . . Times Spotted 34 | . 18 16 Peak Tracking Total 17 | . 4 17 Tactical Retreats 3 | . 1 2 Traps | -11 -10 -10 ------- Run | Yrd Mat Min Traps Triggered 4 | . 4 . Indirectly . | . . . Trap Hack Attempts . | . . . Triggered . | . . . Disarmed . | . . . Reprogrammed 4 | . 4 . Reused 1 | . 1 . Traps Extracted . | . . . Installed . | . . . Triggered 1 | . 1 . Machines | -11 -10 -10 ---------- Run | Yrd Mat Min Machines Disabled . | . . . Max in Single Turn . | . . . Machines Repaired . | . . . Machines Dismantled . | . . . Machines Sabotaged . | . . . Overloaded Fab Kills . | . . . Hacking | -11 -10 -10 --------- Run | Yrd Mat Min Machines Accessed 7 | . 7 . Terminals 6 | . 6 . Fabricators . | . . . Repair Stations . | . . . Recycling Units 1 | . 1 . Scanalyzers . | . . . Garrison Access . | . . . Total Hacks 20 | . 20 . Successful 14 | . 14 . Failed 6 | . 6 . Catastrophic 1 | . 1 . Database Lockouts . | . . . Manual 11 | . 11 . Terminals 19 | . 19 . Fabricators . | . . . Repair Stations . | . . . Recycling Units 1 | . 1 . Scanalyzers . | . . . Garrison Access . | . . . Terminal Hacks 7 | . 7 . Prototype ID Bank 1 | . 1 . Branch Access Points 1 | . 1 . Scanalyzer Index 1 | . 1 . Alert Level 1 | . 1 . Locate Traps 1 | . 1 . Reprogram Traps 1 | . 1 . Zone Layout 1 | . 1 . Fabricator Hacks . | . . . Repair Station Hacks . | . . . Recycling Unit Hacks 1 | . 1 . Report Inventory 1 | . 1 . Scanalyzer . | . . . Garrison Access Hacks . | . . . Unauthorized Hacks 6 | . 6 . Terminals 6 | . 6 . Botnet 6 | . 6 . Fabricators . | . . . Repair Stations . | . . . Recycling Units . | . . . Scanalyzers . | . . . Garrison Access . | . . . Data Cores Recovered . | . . . Used . | . . . Hacking Detections 7 | . 7 . Full Trace Events . | . . . Feedback Events . | . . . Feedback Blocked . | . . . Robot Schematics Acquired . | . . . Robots Built . | . . . Authchips . | . . . Time . | . . . Total Robot Build Rating . | . . . Part Schematics Acquired . | . . . Parts Built . | . . . Authchips . | . . . Time . | . . . Total Part Build Rating . | . . . Part Studies Acquired . | . . . Parts Repaired . | . . . Time . | . . . Parts Recycled . | . . . Recycled Matter . | . . . Retrieved Matter . | . . . Retrieved Components . | . . . Parts Scanalyzed . | . . . Part Schematics Acquired . | . . . Parts Damaged . | . . . Bothacking | -11 -10 -10 ------------ Run | Yrd Mat Min Used RIF Installer . | . . . Robots Hacked . | . . . Non-combat . | . . . Combat . | . . . Robot Hacks Applied . | . . . Relay Couplers Released . | . . . Fabnet Peak Effective % . | . . . Robots Rewired . | . . . Allies Hacked . | . . . Hacks Repelled . | . . . Allies | -11 -10 -10 -------- Run | Yrd Mat Min Total Allies . | . . . Largest Group . | . . . Highest-Rated Group . | . . . Highest-Rated Ally . | . . . Total Orders . | . . . Ally Attacks . | . . . Total Damage . | . . . Kills . | . . . Allies Corrupted . | . . . Allies Melted . | . . . Intel | -11 -10 -10 ------- Run | Yrd Mat Min Active Infowar (turns) 1757 | 22 997 738 Sensors 1214 | . 478 736 Seismic 543 | 22 519 2 Robot Analysis Total . | . . . Derelict Logs Recovered 1 | . . 1 Drone Launches . | . . . Drone Recoveries . | . . . Exploration | -11 -10 -10 ------------- Run | Yrd Mat Min Turns Passed 2850 | 112 1379 1359 Spaces Moved 1134 | 56 580 498 Core 5 | 5 . . Treads 1129 | 51 580 498 Legs . | . . . Wheels . | . . . Hover . | . . . Flight . | . . . Fastest Speed 50 | 50 160 160 Average Speed 159 | 150 160 160 Slowest Speed 160 | 160 160 160 Overloaded Moves . | . . . Propulsion Burnouts . | . . . Robots Hopped . | . . . Potential Cave-ins 2 | . . 2 Cave-ins Triggered . | . . . Exploration Rate (%) 51 | 3 71 79 Regions Visited 2 Branch Regions 1 Pre-discovered Areas . | . . . Known Exits Taken 1 | . 1 . Unknown Exits Taken 1 | 1 . . Scrap Searched 1 | . . 1 Spaces Dug . | . . . Terrain Destroyed . | . . . Melee . | . . . Projectile . | . . . AOE . | . . . Terrain Rammed . | . . . Walls Destroyed . | . . . Machines Disabled . | . . . Actions | -11 -10 -10 --------- Run | Yrd Mat Min Total 2055 | 75 938 1042 Wait 793 | 9 265 519 Move 1132 | 55 579 498 Hop . | . . . Pick Up 17 | 1 15 1 Fast Attach 8 | 7 . 1 Attach 7 | . 7 . Detach 6 | . 6 . Swap 15 | . 9 6 Drop 6 | . 4 2 Fire 67 | 3 53 11 Melee . | . . . Ram . | . . . Kick . | . . . Crush 4 | . . 4 Escape Stasis . | . . . Rewire . | . . . Trap . | . . . Miscellaneous . | . . . Route ------- -11/Scrapyard -10/Materials (discovered 3 exits: *Mat / *Min x2) -10/Mines (discovered 1 exit: *Mat) History --------- Turn | Location | Event 10 | -11/Scrapyard | Discovered new exit (range 15) 113 | -11/Scrapyard | Entered Materials 113 | -10/Materials | Discovered new exit (range 15) 149 | -10/Materials | Identified exit to Mines 313 | -10/Materials | Build established: Mutant 620 | -10/Materials | Discovered new exit (range 10) 1492 | -10/Materials | Entered Mines 2220 | -10/Mines | Discovered new exit (range 6) 2231 | -10/Mines | Identified exit to Materials 2460 | -10/Mines | Core integrity fell below 50% 2516 | -10/Mines | Learned Materials stockpile data 2784 | -10/Mines | Assembled infested the area 2811 | -10/Mines | Core integrity fell below 20% 2851 | -10/Mines | Destroyed by as-94859 with Assembled Maul Last Messages --------------- 02519_ Extracted 84 matter. 02687_ U-05 Engineer builds a Wall. 02691_ U-05 Engineer lays Concrete. 02692_ U-05 Engineer builds a Wall. 02693_ U-05 Engineer lays Concrete. 02697_ U-05 Engineer builds a Wall. 02700_ U-05 Engineer lays Concrete. 02702_ U-05 Engineer builds a Wall. 02706_ U-05 Engineer lays Concrete. 02707_ U-05 Engineer builds a Wall. 02754_ Slammed into K-01 Serf. 02769_ Crushed K-01 Serf. 02769_ K-01 Serf destroyed. 02779_ T-07 Excavator is excavating. 02784_ ALERT: Infestation in the mines, dispatching Demolisher response squad. 02804_ T-07 Excavator is excavating. 02812_ Pulverizer disabled. 02830_ K-01 Serf destroyed. 02849_ Discarded Signal Interpreter. Map ----- +----------------------------------------------------+ | ????????????# #???## ###???## ##????????#### | | ????????????# #????#%# ##### ###???????##? # | | ????????????# #????# ####### ############ ## | | ???????????## ##???# ### ? | | ???????##### ## # # #???# | | ???????# ### # ## ## ## ### ###### | | ???????# ###### # # ## # | | ?####??# ### #???## ## # # # # ######## # # | | ## ##?# #?## #??## ## # ##### ## ##?### # | | # #?# ##### ##??# %% % #???# # | | ### ####??# # #% | | ##### #?????# #### ## ## | | #???# #?????## ## ## ## ## ## | | ##??# #??????## ##??# ### # # | | #??# ##??????## ????#=# ####% #?#### | | #??# ##?????### #????# # ## #????? | | #?## #??????####?????# ** ## ##????? | | ##?# #???????????????### # ### ##????? | | ### ##?# ##????????????????#### #????? | | ##?## #?# ###????????????????# #### ##????? | | ???## ### ##????????????????# # ## #?????? | | ??## ##???????????????###### #?????? | | ?## ###########??????????# #?????? | | ## #### ## ## ##?????????# #?????? | | # ##?##= #?????????#%#?????? | | #??#* [ @ #?????????# #?????? | | #### = a ##?????????# #?????? | | = r a ##??????????# #????## | | = ##### ####a #???????????# #????# | | ###### ##???# ##??#=!#???????????# #????# | | #????# #????## #???# #??####?????# #????# | | ## #????# #?????# #??# #?## ##????# #????# | | ### ##???? #?????## #??# #?# #????# #????# | | #?# #???? ####??????# #### #?# ##???# ###??# | | ### #???# ??????????# ### ### ??# | | #???#???????????## #### #??# | | #####?????????????????##??# ####### ##??## | | #?????????????????????????#####=###### # #???? | | ????????????????????????????###%! #???# #####? | | ????????????????????????????# ##???#### #? | | ????????????????????????????### # #??????# #? | | ?????????????????????????????# % ######## #? | | ?????????????????????????????## "" ## | | ??????????????????????????????# ########## """" | | ??????????????????????????????# #????????# """" ## | | ??????????????????????????????# #????????# #? | | ?????????????????????????????? ????????### ###? | | ?????????????????????????????? ??????????# #??? | | ?????????????????????????????? ??????????# #??? | | ?????????????????????????????? ??????????# ??? | +----------------------------------------------------+ Best States ------------- Heat Dissipation 25 Energy Generation 10 Energy Capacity 250 Matter Stores 300 Matter Capacity 300 Sight Range 16 Robot Scan Range 14 Terrain Scan Density 10 Armor Coverage 150 Evasion (%) 40 Recoil Reduction 2 Item Schematics ----------------- None Robot Schematics ------------------ None Fabricated ------------ Nothing Repaired ---------- Nothing Studied --------- None Alien Tech Used ----------------- None Achievements -------------- None Challenges ------------ None Game ------ Seed AntigravBlinkLayer Manual? 0 Play Time 00:15:55 Cumulative 85.4 hours Start 2026.02.28 @ 15:31:37 End 2026.02.28 @ 15:48:21 Sessions 1 Manual Loads 0 Difficulty Rogue Special Mode None Game No. 85 Rogue 85 Adventurer 0 Explorer 0 Win Type - Total 0 Types 0/0/0/0/0/0/0/0/0/0 Lore% 60 Gallery% 46 Achievement% 37 Wizard Run 0 Options --------- Layout 1 ASCII 0 Keyboard 0 Movement Mouse Keybinds 0 Fullscreen 1 Font 24/Swanston Map View 50x35 Zoom Use 0% Tactical HUD 1 Map Filters NONE Filters NONE Steam 1 RUN: b8fa7ecd-1f1c-4f8d-97e5-0d4817ea387e